Workbook

Sheet Summary
A1: Project Budget Worksheet - Iowa State University of Science and Technology | S1: Eff. 7/1/2013
S2: Updated 7/5/2013
A3: Program Sponsor
A4: Title
A5: PI
A6: Period of Performance
A7: Deadline
H9: Year 1 | J9: Year 2 | L9: Year 3 | N9: Year 4 | P9: Year 5 | R9: Total Federal Funds | S9: Total Cost-Shared Matching Funds | T9: Total Project Funds
H10: Federal Funds Requested | I10: Cost-Shared Matching Funds | J10: Federal Funds Requested | K10: Cost-Shared Matching Funds | L10: Federal Funds Requested | M10: Cost-Shared Matching Funds | N10: Federal Funds Requested | O10: Cost-Shared Matching Funds | P10: Federal Funds Requested | Q10: Cost-Shared Matching Funds
D11: Salary | E11: Calendar | F11: Academic | G11: Summer
A12: A | C12: Key Personnel | D12: Monthly | E12: Months | F12: Months | G12: Months | H12: =SUM(H13:H21) -> 0 | I12: 0 | J12: 0 | K12: 0 | L12: 0 | M12: 0 | N12: 0 | O12: 0 | P12: 0 | Q12: 0 | R12: =SUM(H12+J12+L12+N12+P12) -> 0 | S12: =SUM(I12+K12+M12+O12+Q12) -> 0 | T12: =SUM(R12+S12) -> 0
B13: 1 | D13: 0 | E13: 0 | F13: 0 | G13: 0 | H13: =D13*(E13+F13+G13) -> 0 | J13: =ROUND(H13*1.03,0) -> 0 | L13: =ROUND(J13*1.03,0) -> 0 | N13: =ROUND(L13*1.03,0) -> 0 | P13: =ROUND(N13*1.03,0) -> 0 | R13: =SUM(H13+J13+L13+N13+P13) -> 0 | S13: =SUM(I13+K13+M13+O13+Q13) -> 0 | T13: =SUM(R13+S13) -> 0
B14: 2 | D14: 0 | E14: 0 | F14: 0 | G14: 0 | H14: 0 | J14: =ROUND(H14*1.03,0) -> 0 | L14: =ROUND(J14*1.03,0) -> 0 | N14: =ROUND(L14*1.03,0) -> 0 | P14: =ROUND(N14*1.03,0) -> 0 | R14: =SUM(H14+J14+L14+N14+P14) -> 0 | S14: 0 | T14: =SUM(R14+S14) -> 0
B15: 3 | D15: 0 | E15: 0 | F15: 0 | G15: 0 | H15: 0 | J15: 0 | L15: 0 | N15: 0 | P15: 0 | R15: 0 | S15: 0 | T15: 0
B16: 4 | D16: 0 | E16: 0 | F16: 0 | G16: 0 | H16: 0 | J16: 0 | L16: 0 | N16: 0 | P16: 0 | R16: 0 | S16: 0 | T16: 0
B17: 5 | D17: 0 | E17: 0 | F17: 0 | G17: 0 | H17: 0 | J17: 0 | L17: 0 | N17: 0 | P17: 0 | R17: 0 | S17: 0 | T17: 0
B18: 6 | D18: 0 | E18: 0 | F18: 0 | G18: 0 | H18: 0 | J18: 0 | L18: 0 | N18: 0 | P18: 0 | R18: 0 | S18: 0 | T18: 0
B19: 7 | D19: 0 | E19: 0 | F19: 0 | G19: 0 | H19: 0 | J19: 0 | L19: 0 | N19: 0 | P19: 0 | R19: 0 | S19: 0 | T19: 0
B20: 8 | D20: 0 | E20: 0 | F20: 0 | G20: 0 | H20: 0 | J20: 0 | L20: 0 | N20: 0 | P20: 0 | R20: 0 | S20: 0 | T20: 0
B21: 9 | D21: 0 | E21: 0 | F21: 0 | G21: 0 | H21: 0 | J21: 0 | L21: 0 | N21: 0 | P21: 0 | R21: 0 | S21: 0 | T21: 0
E22: Calendar | G22: Number of
A23: B | C23: Other Personnel | D23: Monthly | E23: Months | G23: persons | H23: =SUM(H24:H35) -> 0 | I23: 0 | J23: 0 | K23: 0 | L23: 0 | M23: 0 | N23: 0 | O23: 0 | P23: 0 | Q23: 0 | R23: =SUM(H23+J23+L23+N23+P23) -> 0 | S23: =SUM(I23+K23+M23+O23+Q23) -> 0 | T23: =SUM(R23+S23) -> 0
B24: 1 | C24: Post Doc | D24: 0 | E24: 0 | G24: 0 | H24: =D24*(E24)*G24 -> 0 | J24: =ROUND(H24*1.03,0) -> 0 | L24: =ROUND(J24*1.03,0) -> 0 | N24: =ROUND(L24*1.03,0) -> 0 | P24: =ROUND(N24*1.03,0) -> 0 | R24: =SUM(H24+J24+L24+N24+P24) -> 0 | S24: 0 | T24: =SUM(R24+S24) -> 0
B25: 2 | C25: Post Doc | D25: 0 | E25: 0 | G25: 0 | H25: =D25*(E25)*G25 -> 0 | J25: =ROUND(H25*1.03,0) -> 0 | L25: =ROUND(J25*1.03,0) -> 0 | N25: =ROUND(L25*1.03,0) -> 0 | P25: =ROUND(N25*1.03,0) -> 0 | R25: 0 | S25: 0 | T25: 0
B26: 3 | C26: Research Asst-Halftime | D26: 0 | E26: 0 | G26: 0 | H26: =D26*(E26)*G26 -> 0 | J26: 0 | L26: 0 | N26: 0 | P26: 0 | R26: 0 | S26: 0 | T26: 0
B27: 4 | C27: Research Asst-Halftime | D27: 0 | E27: 0 | G27: 0 | H27: =+D27*E27*G27 -> 0 | J27: 0 | L27: 0 | N27: 0 | P27: 0 | R27: 0 | S27: 0 | T27: 0
B28: 5 | C28: Hourly Undergraduate student | D28: 0 | E28: 0 | G28: 0 | H28: =D28*(E28)*G28 -> 0 | J28: 0 | L28: 0 | N28: 0 | P28: 0 | R28: 0 | S28: 0 | T28: 0
B29: 6 | C29: Hourly Undergraduate student | D29: 0 | E29: 0 | G29: 0 | H29: 0 | J29: 0 | L29: 0 | N29: 0 | P29: 0 | R29: 0 | S29: 0 | T29: 0
B30: 7 | C30: P&S | D30: 0 | E30: 0 | G30: 0 | H30: 0 | J30: 0 | L30: 0 | N30: 0 | P30: 0 | R30: 0 | S30: 0 | T30: 0
B31: 8 | C31: P&S | D31: 0 | E31: 0 | G31: 0 | H31: 0 | J31: 0 | L31: 0 | N31: 0 | P31: 0 | R31: 0 | S31: 0 | T31: 0
B32: 9 | C32: Secretarial/Clerical | D32: 0 | E32: 0 | G32: 0 | H32: 0 | J32: 0 | L32: 0 | N32: 0 | P32: 0 | R32: 0 | S32: 0 | T32: 0
B33: 10 | C33: Secretarial/Clerical | D33: 0 | E33: 0 | G33: 0 | H33: 0 | J33: 0 | L33: 0 | N33: 0 | P33: 0 | R33: 0 | S33: 0 | T33: 0
B34: 11 | C34: Non-Student Hourly | D34: 0 | E34: 0 | G34: 0 | H34: 0 | J34: 0 | L34: 0 | N34: 0 | P34: 0 | R34: 0 | S34: 0 | T34: 0
B35: 12 | C35: Non-Student Hourly | D35: 0 | E35: 0 | G35: 0 | H35: 0 | J35: 0 | L35: 0 | N35: 0 | P35: 0 | R35: 0 | S35: 0 | T35: 0
C37: Subtotal: Salaries and Wages | H37: =+H12+H23 -> 0 | I37: 0 | J37: 0 | K37: 0 | L37: 0 | M37: 0 | N37: 0 | O37: 0 | P37: 0 | Q37: 0 | R37: =SUM(H37+J37+L37+N37+P37) -> 0 | S37: =SUM(I37+K37+M37+O37+Q37) -> 0 | T37: =SUM(R37+S37) -> 0
A39: C | C39: Fringe Benefits | D39: Rate | H39: =SUM(H40:H60) -> 0 | I39: 0 | J39: 0 | K39: 0 | L39: 0 | M39: 0 | N39: 0 | O39: 0 | P39: 0 | Q39: 0 | R39: =SUM(H39+J39+L39+N39+P39) -> 0 | S39: =SUM(I39+K39+M39+O39+Q39) -> 0 | T39: =SUM(R39+S39) -> 0
C40: =+C13 -> 0 | D40: 0.315 | H40: =ROUND(D40*H13,0) -> 0 | I40: =ROUND(D40*I13,0) -> 0 | J40: =ROUND(D40*J13,0) -> 0 | K40: =ROUND(D40*K13,0) -> 0 | L40: =ROUND(D40*L13,0) -> 0 | M40: =ROUND(D40*M13,0) -> 0 | N40: =ROUND(D40*N13,0) -> 0 | O40: =ROUND(D40*O13,0) -> 0 | P40: =ROUND(D40*P13,0) -> 0 | Q40: =ROUND(D40*Q13,0) -> 0 | R40: =SUM(H40+J40+L40+N40+P40) -> 0 | S40: 0 | T40: =SUM(R40+S40) -> 0
C41: =+C14 -> 0 | D41: 0.315 | H41: =ROUND(D41*H14,0) -> 0 | I41: =ROUND(D41*I14,0) -> 0 | J41: =ROUND(D41*J14,0) -> 0 | K41: =ROUND(D41*K14,0) -> 0 | L41: =ROUND(D41*L14,0) -> 0 | M41: =ROUND(D41*M14,0) -> 0 | N41: =ROUND(D41*N14,0) -> 0 | O41: =ROUND(D41*O14,0) -> 0 | P41: =ROUND(D41*P14,0) -> 0 | Q41: =ROUND(D41*Q14,0) -> 0 | R41: 0 | S41: 0 | T41: 0
C42: =+C15 -> 0 | D42: 0.315 | H42: 0 | I42: 0 | J42: 0 | K42: 0 | L42: 0 | M42: 0 | N42: 0 | O42: 0 | P42: 0 | Q42: 0 | R42: 0 | S42: 0 | T42: 0
C43: =+C16 -> 0 | D43: 0.315 | H43: 0 | I43: 0 | J43: 0 | K43: 0 | L43: 0 | M43: 0 | N43: 0 | O43: 0 | P43: 0 | Q43: 0 | R43: 0 | S43: 0 | T43: 0
C44: =+C17 -> 0 | D44: 0.315 | H44: 0 | I44: 0 | J44: 0 | K44: 0 | L44: 0 | M44: 0 | N44: 0 | O44: 0 | P44: 0 | Q44: 0 | R44: 0 | S44: 0 | T44: 0
C45: =C18 -> 0 | D45: 0.315 | H45: 0 | I45: 0 | J45: 0 | K45: 0 | L45: 0 | M45: 0 | N45: 0 | O45: 0 | P45: 0 | Q45: 0 | R45: 0 | S45: 0 | T45: 0
C46: =C19 -> 0 | D46: 0.315 | H46: 0 | I46: 0 | J46: 0 | K46: 0 | L46: 0 | M46: 0 | N46: 0 | O46: 0 | P46: 0 | Q46: 0 | R46: 0 | S46: 0 | T46: 0
C47: =C20 -> 0 | D47: 0.315 | H47: 0 | I47: 0 | J47: 0 | K47: 0 | L47: 0 | M47: 0 | N47: 0 | O47: 0 | P47: 0 | Q47: 0 | R47: 0 | S47: 0 | T47: 0
C48: =C21 -> 0 | D48: 0.315 | H48: 0 | I48: 0 | J48: 0 | K48: 0 | L48: 0 | M48: 0 | N48: 0 | O48: 0 | P48: 0 | Q48: 0 | R48: 0 | S48: 0 | T48: 0
C49: =+C24 -> Post Doc | D49: 0.23 | H49: =ROUND(D49*H24,0) -> 0 | I49: =ROUND(D49*I24,0) -> 0 | J49: =ROUND(D49*J24,0) -> 0 | K49: =ROUND(D49*K24,0) -> 0 | L49: =ROUND(D49*L24,0) -> 0 | M49: =ROUND(D49*M24,0) -> 0 | N49: =ROUND(D49*N24,0) -> 0 | O49: =ROUND(D49*O24,0) -> 0 | P49: =ROUND(D49*P24,0) -> 0 | Q49: =ROUND(D49*Q24,0) -> 0 | R49: 0 | S49: 0 | T49: 0
C50: Post Doc | D50: 0.23 | H50: =ROUND(D50*H25,0) -> 0 | I50: =ROUND(D50*I25,0) -> 0 | J50: =ROUND(D50*J25,0) -> 0 | K50: =ROUND(D50*K25,0) -> 0 | L50: =ROUND(D50*L25,0) -> 0 | M50: =ROUND(D50*M25,0) -> 0 | N50: =ROUND(D50*N25,0) -> 0 | O50: =ROUND(D50*O25,0) -> 0 | P50: =ROUND(D50*P25,0) -> 0 | Q50: =ROUND(D50*Q25,0) -> 0 | R50: 0 | S50: 0 | T50: 0
C51: Research Asst-Halftime | D51: 0.13 | H51: 0 | I51: 0 | J51: 0 | K51: 0 | L51: 0 | M51: 0 | N51: 0 | O51: 0 | P51: 0 | Q51: 0 | R51: 0 | S51: 0 | T51: 0
C52: Research Asst-Halftime | D52: 0.13 | H52: 0 | I52: 0 | J52: 0 | K52: 0 | L52: 0 | M52: 0 | N52: 0 | O52: 0 | P52: 0 | Q52: 0 | R52: 0 | S52: 0 | T52: 0
C53: Hourly Undergraduate student | D53: 0.046 | H53: 0 | I53: 0 | J53: 0 | K53: 0 | L53: 0 | M53: 0 | N53: 0 | O53: 0 | P53: 0 | Q53: 0 | R53: 0 | S53: 0 | T53: 0
C54: Hourly Undergraduate student | D54: 0.046 | H54: 0 | I54: 0 | J54: 0 | K54: 0 | L54: 0 | M54: 0 | N54: 0 | O54: 0 | P54: 0 | Q54: 0 | R54: 0 | S54: 0 | T54: 0
C55: =+C30 -> P&S | D55: 0.378 | H55: 0 | I55: 0 | J55: 0 | K55: 0 | L55: 0 | M55: 0 | N55: 0 | O55: 0 | P55: 0 | Q55: 0 | R55: 0 | S55: 0 | T55: 0
C56: P&S | D56: 0.378 | H56: 0 | I56: 0 | J56: 0 | K56: 0 | L56: 0 | M56: 0 | N56: 0 | O56: 0 | P56: 0 | Q56: 0 | R56: 0 | S56: 0 | T56: 0
C57: =+C32 -> Secretarial/Clerical | D57: 0.5 | H57: 0 | I57: 0 | J57: 0 | K57: 0 | L57: 0 | M57: 0 | N57: 0 | O57: 0 | P57: 0 | Q57: 0 | R57: 0 | S57: 0 | T57: 0
C58: Secretarial/Clerical | D58: 0.5 | H58: 0 | I58: 0 | J58: 0 | K58: 0 | L58: 0 | M58: 0 | N58: 0 | O58: 0 | P58: 0 | Q58: 0 | R58: 0 | S58: 0 | T58: 0
C59: Non-Student Hourly | D59: 0.12 | H59: 0 | I59: 0 | J59: 0 | K59: 0 | L59: 0 | M59: 0 | N59: 0 | O59: 0 | P59: 0 | Q59: 0 | R59: 0 | S59: 0 | T59: 0
C60: Non-Student Hourly | D60: 0.12 | H60: 0 | I60: 0 | J60: 0 | K60: 0 | L60: 0 | M60: 0 | N60: 0 | O60: 0 | P60: 0 | Q60: 0 | R60: 0 | S60: 0 | T60: 0
C62: Subtotal: Salaries, Wages, and Benefits | H62: =H37+H39 -> 0 | I62: 0 | J62: 0 | K62: 0 | L62: 0 | M62: 0 | N62: 0 | O62: 0 | P62: 0 | Q62: 0 | R62: =SUM(H62+J62+L62+N62+P62) -> 0 | S62: =SUM(I62+K62+M62+O62+Q62) -> 0 | T62: =SUM(R62+S62) -> 0
A64: D | C64: Equipment (List Item and $ amount for each item > $5k) | H64: =SUM(H65:H66) -> 0 | I64: 0 | J64: 0 | K64: 0 | L64: 0 | M64: 0 | N64: 0 | O64: 0 | P64: 0 | Q64: 0 | R64: =SUM(H64+J64+L64+N64+P64) -> 0 | S64: =SUM(I64+K64+M64+O64+Q64) -> 0 | T64: =SUM(R64+S64) -> 0
C65: 1 | R65: =SUM(H65+J65+L65+N65+P65) -> 0 | S65: 0 | T65: =SUM(R65+S65) -> 0
C66: 2 | R66: 0 | S66: 0 | T66: 0
A68: E | C68: Travel | H68: =SUM(H69:H70) -> 0 | I68: 0 | J68: 0 | K68: 0 | L68: 0 | M68: 0 | N68: 0 | O68: 0 | P68: 0 | Q68: 0 | R68: =SUM(H68+J68+L68+N68+P68) -> 0 | S68: =SUM(I68+K68+M68+O68+Q68) -> 0 | T68: =SUM(R68+S68) -> 0
C69: 1. Domestic Travel | H69: 0 | J69: 0 | L69: 0 | N69: 0 | P69: 0 | R69: =SUM(H69+J69+L69+N69+P69) -> 0 | S69: 0 | T69: =SUM(R69+S69) -> 0
C70: 2. Foreign Travel | H70: 0 | J70: 0 | L70: 0 | N70: 0 | P70: 0 | R70: 0 | S70: 0 | T70: 0
A72: F | C72: Participant Support Cost | E72: See notes below | H72: =SUM(H73:H76) -> 0 | I72: 0 | J72: 0 | K72: 0 | L72: 0 | M72: 0 | N72: 0 | O72: 0 | P72: 0 | Q72: 0 | R72: =SUM(H72+J72+L72+N72+P72) -> 0 | S72: =SUM(I72+K72+M72+O72+Q72) -> 0 | T72: =SUM(R72+S72) -> 0
C73: 1. Stipend | H73: 0 | J73: 0 | L73: 0 | N73: 0 | P73: 0 | R73: =SUM(H73+J73+L73+N73+P73) -> 0 | S73: 0 | T73: =SUM(R73+S73) -> 0
C74: 2. Travel | H74: 0 | J74: 0 | L74: 0 | N74: 0 | P74: 0 | R74: 0 | S74: 0 | T74: 0
C75: 3. Subsistence | H75: 0 | J75: 0 | L75: 0 | N75: 0 | P75: 0 | R75: 0 | S75: 0 | T75: 0
C76: 4. Other | H76: 0 | J76: 0 | L76: 0 | N76: 0 | P76: 0 | R76: 0 | S76: 0 | T76: 0
A78: G | C78: Other Direct Costs | H78: =SUM(H79:H90) -> 0 | I78: 0 | J78: 0 | K78: 0 | L78: 0 | M78: 0 | N78: 0 | O78: 0 | P78: 0 | Q78: 0 | R78: =SUM(H78+J78+L78+N78+P78) -> 0 | S78: =SUM(I78+K78+M78+O78+Q78) -> 0 | T78: =SUM(R78+S78) -> 0
B79: 1 | C79: Materials and Supplies | H79: 0 | J79: 0 | L79: 0 | N79: 0 | P79: 0 | R79: =SUM(H79+J79+L79+N79+P79) -> 0 | S79: 0 | T79: =SUM(R79+S79) -> 0
B80: 2 | C80: Publication cost | H80: 0 | J80: 0 | L80: 0 | N80: 0 | P80: 0 | R80: 0 | S80: 0 | T80: 0
B81: 3 | C81: Computing support | H81: 0 | J81: 0 | L81: 0 | N81: 0 | P81: 0 | R81: 0 | S81: 0 | T81: 0
B82: 4 | C82: Instrumentation facility | H82: 0 | J82: 0 | L82: 0 | N82: 0 | P82: 0 | R82: 0 | S82: 0 | T82: 0
B83: 5 | C83: Subcontractor1 - Subject to IDC (first $25,000) | E83: See notes below | H83: 0 | J83: 0 | L83: 0 | N83: 0 | P83: 0 | R83: 0 | S83: 0 | T83: 0
C84: NOT subject to IDC (Amount over $25,000) | H84: 0 | J84: 0 | L84: 0 | N84: 0 | P84: 0 | R84: 0 | S84: 0 | T84: 0
B85: 6 | C85: Subcontractor2 - Subject to IDC (first $25,000) | E85: See notes below | H85: 0 | J85: 0 | L85: 0 | N85: 0 | P85: 0 | R85: 0 | S85: 0 | T85: 0
C86: NOT subject to IDC (Amount over $25,000) | H86: 0 | J86: 0 | L86: 0 | N86: 0 | P86: 0 | R86: 0 | S86: 0 | T86: 0
B87: 7 | C87: Tuition - Non-Engineering | D87: (Click on "Tuition" sheet) | H87: =Tuition!K6 -> 0 | J87: =Tuition!M6 -> 0 | L87: =Tuition!O6 -> 0 | N87: =Tuition!Q6 -> 0 | P87: =Tuition!S6 -> 0 | R87: 0 | S87: 0 | T87: 0
B88: 8 | C88: Tuition - Engineering | D88: (Click on "Tuition" sheet) | H88: =Tuition!K26 -> 0 | J88: =Tuition!M26 -> 0 | L88: =Tuition!O26 -> 0 | N88: =Tuition!Q26 -> 0 | P88: =Tuition!S26 -> 0 | R88: 0 | S88: 0 | T88: 0
B89: 9 | C89: Other | H89: 0 | J89: 0 | L89: 0 | N89: 0 | P89: 0 | R89: 0 | S89: 0 | T89: 0
B90: 10 | C90: Other | H90: 0 | J90: 0 | L90: 0 | N90: 0 | P90: 0 | R90: 0 | S90: 0 | T90: 0
C92: Subtotal: Total Direct Costs (TDC) | H92: =H62+H64+H68+H72+H78 -> 0 | I92: 0 | J92: 0 | K92: 0 | L92: 0 | M92: 0 | N92: 0 | O92: 0 | P92: 0 | Q92: 0 | R92: =SUM(H92+J92+L92+N92+P92) -> 0 | S92: =SUM(I92+K92+M92+O92+Q92) -> 0 | T92: =SUM(R92+S92) -> 0
C94: Subtotal: Modified Total Direct Costs | H94: =(H92-H64-H84-H86-H87-H88) -> 0 | I94: 0 | J94: 0 | K94: 0 | L94: 0 | M94: 0 | N94: 0 | O94: 0 | P94: 0 | Q94: 0 | R94: =SUM(H94+J94+L94+N94+P94) -> 0 | S94: =SUM(I94+K94+M94+O94+Q94) -> 0 | T94: =SUM(R94+S94) -> 0
C95: [ MTDC = TDC - Tuition - Equipment - Participant Support Cost ]
A97: H | C97: Indirect Costs | D97: Rate | H97: =SUM(H98:H98) -> 0 | I97: 0 | J97: 0 | K97: 0 | L97: 0 | M97: 0 | N97: 0 | O97: 0 | P97: 0 | Q97: 0 | R97: =SUM(H97+J97+L97+N97+P97) -> 0 | S97: =SUM(I97+K97+M97+O97+Q97) -> 0 | T97: =SUM(R97+S97) -> 0
C98: IDC on MTDC | D98: 0.5 | E98: [ IDC = MTDC * Indirect Rate ] | H98: =ROUND(H94*$D$98,0) -> 0 | I98: 0 | J98: 0 | K98: 0 | L98: 0 | M98: 0 | N98: 0 | O98: 0 | P98: 0 | Q98: 0 | R98: =SUM(H98+J98+L98+N98+P98) -> 0 | S98: 0 | T98: =SUM(R98+S98) -> 0
A101: I | C101: Total Direct + Indirect Costs | H101: =H92+H97 -> 0 | I101: 0 | J101: 0 | K101: 0 | L101: 0 | M101: 0 | N101: 0 | O101: 0 | P101: 0 | Q101: 0 | R101: =SUM(H101+J101+L101+N101+P101) -> 0 | S101: =SUM(I101+K101+M101+O101+Q101) -> 0 | T101: =SUM(R101+S101) -> 0
C107: NOTES:
C109: This budget is completely adjustable. As such, you will need to double check your work and make adjustments in certain cells, such as:
C111: Participant Support Costs - These are included in the MTDC for this budget. Please note that if this is for an NSF budget, you will need to exclude it in the MTDC line.
C113: Subcontracts - Verify that only the first $25K of each subcontract is charged IDC. You might need to adjust the MTDC for each year of each subcontract.
C116: Benefits: | H116: Indirect Cost Categories:
C117: A&B | D117: 0.315
C118: C | D118: 0.13 | H118: 0.5 | I118: On-Campus Organized Research
C119: D | D119: 0.23 | H119: 0.51 | I119: On Campus Instruction
C120: P | D120: 0.378 | H120: 0.32 | I120: On-Campus Other Sponsored Activities
C121: E | D121: 0.5 | H121: 0.26 | I121: Off-Campus All Programs
C122: XH (Student hourly) | D122: 0.046
C123: XH (Non-Student hourly) | D123: 0.12
C125: Post Doc Salary Range:
C126: $38K- $80K
C127: http://www.grad-college.iastate.edu/postdoc/advisors/policies.php

Sheet Tuition
C1: Tuition Costs | K1: Year 1 | M1: Year 2 | O1: Year 3 | Q1: Year 4 | S1: Year 5
K3: Funds Requested | M3: Funds Requested | O3: Funds Requested | Q3: Funds Requested | S3: Funds Requested
A6: 8 | C6: Graduate Student Tuition (NON-ENGINEERING) | G6: select 1/4-time/1/2-time > > | I6: 1/2-time | K6: =ROUND(IF(I6="1/2-time",K7,K8),0) -> 0 | M6: =ROUND(IF(I6="1/2-time",M7,M8),0) -> 0 | O6: =ROUND(IF(I6="1/2-time",O7,O8),0) -> 0 | Q6: =ROUND(IF(I6="1/2-time",Q7,Q8),0) -> 0 | S6: =ROUND(IF(I6="1/2-time",S7,S8),0) -> 0
A7: 8 | C7: Graduate Student Tuition | I7: Maximum | K7: =+C13*VLOOKUP(K13,$I$53:$Q$109,5,FALSE)+C15*VLOOKUP(K15,$I$53:$Q$109,5,FALSE)+C17*VLOOKUP(K17,$I$53:$Q$109,5,FALSE)+C19*VLOOKUP(K19,$I$53:$Q$109,9,FALSE)+C21*VLOOKUP(K21,$I$53:$Q$109,9,FALSE)+C23*VLOOKUP(K23,$I$53:$Q$109,9,FALSE) -> 0 | M7: =+E13*VLOOKUP(M13,$I$53:$Q$109,5,FALSE)+E15*VLOOKUP(M15,$I$53:$Q$109,5,FALSE)+E17*VLOOKUP(M17,$I$53:$Q$109,5,FALSE)+E19*VLOOKUP(M19,$I$53:$Q$109,9,FALSE)+E21*VLOOKUP(M21,$I$53:$Q$109,9,FALSE)+E23*VLOOKUP(M23,$I$53:$Q$109,9,FALSE) -> 0 | O7: =+F13*VLOOKUP(O13,$I$53:$Q$109,5,FALSE)+F15*VLOOKUP(O15,$I$53:$Q$109,5,FALSE)+F17*VLOOKUP(O17,$I$53:$Q$109,5,FALSE)+F19*VLOOKUP(O19,$I$53:$Q$109,9,FALSE)+F21*VLOOKUP(O21,$I$53:$Q$109,9,FALSE)+F23*VLOOKUP(O23,$I$53:$Q$109,9,FALSE) -> 0 | Q7: =+G13*VLOOKUP(Q13,$I$53:$Q$109,5,FALSE)+G15*VLOOKUP(Q15,$I$53:$Q$109,5,FALSE)+G17*VLOOKUP(Q17,$I$53:$Q$109,5,FALSE)+G19*VLOOKUP(Q19,$I$53:$Q$109,9,FALSE)+G21*VLOOKUP(Q21,$I$53:$Q$109,9,FALSE)+G23*VLOOKUP(Q23,$I$53:$Q$109,9,FALSE) -> 0 | S7: =+H13*VLOOKUP(S13,$I$53:$Q$109,5,FALSE)+H15*VLOOKUP(S15,$I$53:$Q$109,5,FALSE)+H17*VLOOKUP(S17,$I$53:$Q$109,5,FALSE)+H19*VLOOKUP(S19,$I$53:$Q$109,9,FALSE)+H21*VLOOKUP(S21,$I$53:$Q$109,9,FALSE)+H23*VLOOKUP(S23,$I$53:$Q$109,9,FALSE) -> 0
A8: 8 | C8: Graduate Student Tuition | I8: Minimum | K8: =+C13*VLOOKUP(K13,$I$53:$Q$109,3,FALSE)+C15*VLOOKUP(K15,$I$53:$Q$109,3,FALSE)+C17*VLOOKUP(K17,$I$53:$Q$109,3,FALSE)+C19*VLOOKUP(K19,$I$53:$Q$109,7,FALSE)+C21*VLOOKUP(K21,$I$53:$Q$109,7,FALSE)+C23*VLOOKUP(K23,$I$53:$Q$109,7,FALSE) -> 0 | M8: =+E13*VLOOKUP(M13,$I$53:$Q$109,3,FALSE)+E15*VLOOKUP(M15,$I$53:$Q$109,3,FALSE)+E17*VLOOKUP(M17,$I$53:$Q$109,3,FALSE)+E19*VLOOKUP(M19,$I$53:$Q$109,7,FALSE)+E21*VLOOKUP(M21,$I$53:$Q$109,7,FALSE)+E23*VLOOKUP(M23,$I$53:$Q$109,7,FALSE) -> 0 | O8: =+F13*VLOOKUP(O13,$I$53:$Q$109,3,FALSE)+F15*VLOOKUP(O15,$I$53:$Q$109,3,FALSE)+F17*VLOOKUP(O17,$I$53:$Q$109,3,FALSE)+F19*VLOOKUP(O19,$I$53:$Q$109,7,FALSE)+F21*VLOOKUP(O21,$I$53:$Q$109,7,FALSE)+F23*VLOOKUP(O23,$I$53:$Q$109,7,FALSE) -> 0 | Q8: =+G13*VLOOKUP(Q13,$I$53:$Q$84,3,FALSE)+G15*VLOOKUP(Q15,$I$53:$Q$84,3,FALSE)+G17*VLOOKUP(Q17,$I$53:$Q$84,3,FALSE)+G19*VLOOKUP(Q19,$I$53:$Q$84,7,FALSE)+G21*VLOOKUP(Q21,$I$53:$Q$84,7,FALSE)+G23*VLOOKUP(Q23,$I$53:$Q$84,7,FALSE) -> 0 | S8: =+H13*VLOOKUP(S13,$I$53:$Q$84,3,FALSE)+H15*VLOOKUP(S15,$I$53:$Q$84,3,FALSE)+H17*VLOOKUP(S17,$I$53:$Q$84,3,FALSE)+H19*VLOOKUP(S19,$I$53:$Q$84,7,FALSE)+H21*VLOOKUP(S21,$I$53:$Q$84,7,FALSE)+H23*VLOOKUP(S23,$I$53:$Q$84,7,FALSE) -> 0
C11: NON-Engineering Students Only
C12: Year 1 | E12: Year 2 | F12: Year 3 | G12: Year 4 | H12: Year 5
A13: Masters Students (enter no. of students per term) | I13: Summer | K13: Summer 2013 | M13: Summer 2014 | O13: Summer 2015 | Q13: Summer 2016 | S13: Summer 2017
I15: Fall | K15: Fall 2013 | M15: Fall 2014 | O15: Fall 2015 | Q15: Fall 2016 | S15: Fall 2017
E17: 0 | F17: 0 | G17: 0 | H17: 0 | I17: Spring | K17: Spring 2013 | M17: Spring 2014 | O17: Spring 2015 | Q17: Spring 2016 | S17: Spring 2017
A19: PhD Students (enter no. of students per term) | I19: Summer | K19: Summer 2013 | M19: Summer 2014 | O19: Summer 2015 | Q19: Summer 2016 | S19: Summer 2017
I21: Fall | K21: Fall 2013 | M21: Fall 2014 | O21: Fall 2015 | Q21: Fall 2016 | S21: Fall 2017
I23: 1 | K23: Spring 2013 | M23: Spring 2014 | O23: Spring 2015 | Q23: Spring 2016 | S23: Spring 2017
A26: 8 | C26: Graduate Student Tuition (ENGINEERING) | G26: select 1/4-time/1/2-time > > | I26: 1/2-time | K26: =ROUND(IF($I$26="1/2-time",K27,K28),0) -> 0 | M26: =ROUND(IF($I$26="1/2-time",M27,M28),0) -> 0 | O26: =ROUND(IF($I$26="1/2-time",O27,O28),0) -> 0 | Q26: =ROUND(IF($I$26="1/2-time",Q27,Q28),0) -> 0 | S26: =ROUND(IF($I$26="1/2-time",S27,S28),0) -> 0
A27: 8 | C27: Graduate Student Tuition | I27: Maximum | K27: =+C33*VLOOKUP(K33,$I$83:$Q$109,5,FALSE)+C35*VLOOKUP(K35,$I$83:$Q$109,5,FALSE)+C37*VLOOKUP(K37,$I$83:$Q$109,5,FALSE)+C39*VLOOKUP(K39,$I$83:$Q$109,9,FALSE)+C41*VLOOKUP(K41,$I$83:$Q$109,9,FALSE)+C43*VLOOKUP(K43,$I$83:$Q$109,9,FALSE) -> 0 | M27: =+E33*VLOOKUP(M33,$I$83:$Q$109,5,FALSE)+E35*VLOOKUP(M35,$I$83:$Q$109,5,FALSE)+E37*VLOOKUP(M37,$I$83:$Q$109,5,FALSE)+E39*VLOOKUP(M39,$I$83:$Q$109,9,FALSE)+E41*VLOOKUP(M41,$I$83:$Q$109,9,FALSE)+E43*VLOOKUP(M43,$I$83:$Q$109,9,FALSE) -> 0 | O27: =+F33*VLOOKUP(O33,$I$83:$Q$109,5,FALSE)+F35*VLOOKUP(O35,$I$83:$Q$109,5,FALSE)+F37*VLOOKUP(O37,$I$83:$Q$109,5,FALSE)+F39*VLOOKUP(O39,$I$83:$Q$109,9,FALSE)+F41*VLOOKUP(O41,$I$83:$Q$109,9,FALSE)+F43*VLOOKUP(O43,$I$83:$Q$109,9,FALSE) -> 0 | Q27: =+G33*VLOOKUP(Q33,$I$83:$Q$109,5,FALSE)+G35*VLOOKUP(Q35,$I$83:$Q$109,5,FALSE)+G37*VLOOKUP(Q37,$I$83:$Q$109,5,FALSE)+G39*VLOOKUP(Q39,$I$83:$Q$109,9,FALSE)+G41*VLOOKUP(Q41,$I$83:$Q$109,9,FALSE)+G43*VLOOKUP(Q43,$I$83:$Q$109,9,FALSE) -> 0 | S27: =+H33*VLOOKUP(S33,$I$83:$Q$109,5,FALSE)+H35*VLOOKUP(S35,$I$83:$Q$109,5,FALSE)+H37*VLOOKUP(S37,$I$83:$Q$109,5,FALSE)+H39*VLOOKUP(S39,$I$83:$Q$109,9,FALSE)+H41*VLOOKUP(S41,$I$83:$Q$109,9,FALSE)+H43*VLOOKUP(S43,$I$83:$Q$109,9,FALSE) -> 0
A28: 8 | C28: Graduate Student Tuition | I28: Minimum | K28: =+C33*VLOOKUP(K33,$I$83:$Q$109,3,FALSE)+C35*VLOOKUP(K35,$I$83:$Q$109,3,FALSE)+C37*VLOOKUP(K37,$I$83:$Q$109,3,FALSE)+C39*VLOOKUP(K39,$I$83:$Q$109,7,FALSE)+C41*VLOOKUP(K41,$I$83:$Q$109,7,FALSE)+C43*VLOOKUP(K43,$I$83:$Q$109,7,FALSE) -> 0 | M28: =+E33*VLOOKUP(M33,$I$83:$Q$109,3,FALSE)+E35*VLOOKUP(M35,$I$83:$Q$109,3,FALSE)+E37*VLOOKUP(M37,$I$83:$Q$109,3,FALSE)+E39*VLOOKUP(M39,$I$83:$Q$109,7,FALSE)+E41*VLOOKUP(M41,$I$83:$Q$109,7,FALSE)+E43*VLOOKUP(M43,$I$83:$Q$109,7,FALSE) -> 0 | O28: =+F33*VLOOKUP(O33,$I$83:$Q$109,3,FALSE)+F35*VLOOKUP(O35,$I$83:$Q$109,3,FALSE)+F37*VLOOKUP(O37,$I$83:$Q$109,3,FALSE)+F39*VLOOKUP(O39,$I$83:$Q$109,7,FALSE)+F41*VLOOKUP(O41,$I$83:$Q$109,7,FALSE)+F43*VLOOKUP(O43,$I$83:$Q$109,7,FALSE) -> 0 | Q28: =+G33*VLOOKUP(Q33,$I$83:$Q$109,3,FALSE)+G35*VLOOKUP(Q35,$I$83:$Q$109,3,FALSE)+G37*VLOOKUP(Q37,$I$83:$Q$109,3,FALSE)+G39*VLOOKUP(Q39,$I$83:$Q$109,7,FALSE)+G41*VLOOKUP(Q41,$I$83:$Q$109,7,FALSE)+G43*VLOOKUP(Q43,$I$83:$Q$109,7,FALSE) -> 0 | S28: =+H33*VLOOKUP(S33,$I$83:$Q$109,3,FALSE)+H35*VLOOKUP(S35,$I$83:$Q$109,3,FALSE)+H37*VLOOKUP(S37,$I$83:$Q$109,3,FALSE)+H39*VLOOKUP(S39,$I$83:$Q$109,7,FALSE)+H41*VLOOKUP(S41,$I$83:$Q$109,7,FALSE)+H43*VLOOKUP(S43,$I$83:$Q$109,7,FALSE) -> 0
C31: Engineering Students Only
C32: Year 1 | E32: Year 2 | F32: Year 3 | G32: Year 4 | H32: Year 5
A33: Masters Students (enter no. of students per term) | I33: Summer | K33: Summer 2013 | M33: Summer 2014 | O33: Summer 2015 | Q33: Summer 2016 | S33: Summer 2017
C34: 1
I35: Fall | K35: Fall 2013 | M35: Fall 2014 | O35: Fall 2015 | Q35: Fall 2016 | S35: Fall 2017
I37: Spring | K37: Spring 2013 | M37: Spring 2014 | O37: Spring 2015 | Q37: Spring 2016 | S37: Spring 2017
C38: Year 1 | E38: Year 2 | F38: Year 3 | G38: Year 4 | H38: Year 5
A39: PhD Students (enter no. of students per term) | C39: 0 | E39: 0 | F39: 0 | G39: 0 | H39: 0 | I39: Summer | K39: Summer 2013 | M39: Summer 2014 | O39: Summer 2015 | Q39: Summer 2016 | S39: Summer 2017
I41: Fall | K41: Fall 2013 | M41: Fall 2014 | O41: Fall 2015 | Q41: Fall 2016 | S41: Fall 2017
C43: 0 | E43: 0 | F43: 0 | G43: 0 | H43: 0 | I43: Spring | K43: Spring 2013 | M43: Spring 2014 | O43: Spring 2015 | Q43: Spring 2016 | S43: Spring 2017
K49: Masters - Min | M49: Masters-Max | O49: PhD - Min | Q49: PhD - Max | S49: esc. Rate
S50: 1.042
S51: 1/4-time
S52: 1/2-time
I53: Fall 2012 | K53: 970 | M53: 1939 | O53: 1939 | Q53: 3878
I54: Fall 2013 | K54: 981 | M54: 1962 | O54: 1962 | Q54: 3924
I55: Fall 2014 | K55: =K54*$S$50 -> 1022.202 | M55: =M54*$S$50 -> 2044.404 | O55: =O54*$S$50 -> 2044.404 | Q55: =Q54*$S$50 -> 4088.808
I56: Fall 2015 | K56: 1065.134484 | M56: =M55*$S$50 -> 2130.268968 | O56: =O55*$S$50 -> 2130.268968 | Q56: =Q55*$S$50 -> 4260.537936
I57: Fall 2016 | K57: 1109.870132 | M57: 2219.740265 | O57: 2219.740265 | Q57: 4439.480529
I58: Fall 2017 | K58: 1156.484678 | M58: 2312.969356 | O58: 2312.969356 | Q58: 4625.938712
I59: Fall 2018 | K59: 1205.057034 | M59: 2410.114069 | O59: 2410.114069 | Q59: 4820.228137
I60: Fall 2019 | K60: 1255.66943 | M60: 2511.33886 | O60: 2511.33886 | Q60: 5022.677719
I62: Spring 2012 | K62: 935 | M62: 1869 | O62: 1869 | Q62: 3738
I63: Spring 2013 | K63: 970 | M63: 1939 | O63: 1939 | Q63: 3878
I64: Spring 2014 | K64: 981 | M64: 1962 | O64: 1962 | Q64: 3924
I65: Spring 2015 | K65: =K64*$S$50 -> 1022.202 | M65: =M64*$S$50 -> 2044.404 | O65: =O64*$S$50 -> 2044.404 | Q65: =Q64*$S$50 -> 4088.808
I66: Spring 2016 | K66: 1065.134484 | M66: 2130.268968 | O66: 2130.268968 | Q66: =Q65*$S$50 -> 4260.537936
I67: Spring 2017 | K67: 1109.870132 | M67: 2219.740265 | O67: 2219.740265 | Q67: 4439.480529
I68: Spring 2018 | K68: 1156.484678 | M68: 2312.969356 | O68: 2312.969356 | Q68: 4625.938712
I69: Spring 2019 | K69: 1205.057034 | M69: 2410.114069 | O69: 2410.114069 | Q69: 4820.228137
I71: Summer 2012 | K71: 539 | M71: 1078 | O71: 1078 | Q71: 2155
I72: Summer 2013 | K72: 545 | M72: 1090 | O72: 1090 | Q72: 2180
I73: Summer 2014 | K73: =K72*$S$50 -> 567.89 | M73: =M72*$S$50 -> 1135.78 | O73: =O72*$S$50 -> 1135.78 | Q73: =Q72*$S$50 -> 2271.56
I74: Summer 2015 | K74: =K73*$S$50 -> 591.74138 | M74: =M73*$S$50 -> 1183.48276 | O74: =O73*$S$50 -> 1183.48276 | Q74: =Q73*$S$50 -> 2366.96552
I75: Summer 2016 | K75: 616.594518 | M75: 1233.189036 | O75: 1233.189036 | Q75: 2466.378072
I76: Summer 2017 | K76: 642.4914877 | M76: 1284.982975 | O76: 1284.982975 | Q76: 2569.965951
I77: Summer 2018 | K77: 669.4761302 | M77: 1338.95226 | O77: 1338.95226 | Q77: 2677.904521
I78: Summer 2019 | K78: 697.5941277 | M78: 1395.188255 | O78: 1395.188255 | Q78: 2790.376511
I80: Engineering students
K81: Masters - Min | M81: Masters-Max | O81: PhD - Min | Q81: PhD - Max
I83: Fall 2012 | K83: 1118 | M83: 2235 | O83: 2235 | Q83: 4470
I84: Fall 2013 | K84: 1131 | M84: 2262 | O84: 2262 | Q84: 4523
I85: Fall 2014 | K85: =K84*$S$50 -> 1178.502 | M85: =M84*$S$50 -> 2357.004 | O85: =O84*$S$50 -> 2357.004 | Q85: =Q84*$S$50 -> 4712.966
I86: Fall 2015 | K86: =K85*$S$50 -> 1227.999084 | M86: =M85*$S$50 -> 2455.998168 | O86: =O85*$S$50 -> 2455.998168 | Q86: =Q85*$S$50 -> 4910.910572
I87: Fall 2016 | K87: 1279.575046 | M87: 2559.150091 | O87: 2559.150091 | Q87: 5117.168816
I88: Fall 2017 | K88: 1333.317197 | M88: 2666.634395 | O88: 2666.634395 | Q88: 5332.089906
I89: Fall 2018 | K89: 1389.31652 | M89: 2778.633039 | O89: 2778.633039 | Q89: 5556.037682
I90: Fall 2019 | K90: 1447.667814 | M90: 2895.335627 | O90: 2895.335627 | Q90: 5789.391265
K91: 0 | O91: 0
I92: Spring 2012 | K92: 1077 | M92: 2154 | O92: 2154 | Q92: 4308
I93: Spring 2013 | K93: 1118 | M93: 2235 | O93: 2235 | Q93: 4470
I94: Spring 2014 | K94: 1131 | M94: 2262 | O94: 2262 | Q94: 4523
I95: Spring 2015 | K95: =K94*$S$50 -> 1178.502 | M95: =M94*$S$50 -> 2357.004 | O95: =O94*$S$50 -> 2357.004 | Q95: =Q94*$S$50 -> 4712.966
I96: Spring 2016 | K96: =K95*$S$50 -> 1227.999084 | M96: =M95*$S$50 -> 2455.998168 | O96: 2455.998168 | Q96: =Q95*$S$50 -> 4910.910572
I97: Spring 2017 | K97: 1279.575046 | M97: 2559.150091 | O97: 2559.150091 | Q97: 5117.168816
I98: Spring 2018 | K98: 1333.317197 | M98: 2666.634395 | O98: 2666.634395 | Q98: 5332.089906
I99: Spring 2019 | K99: 1389.31652 | M99: 2778.633039 | O99: 2778.633039 | Q99: 5556.037682
K100: 0 | O100: 0
I101: Summer 2012 | K101: 621 | M101: 1243 | O101: 1243 | Q101: 2485
I102: Summer 2013 | K102: 629 | M102: 1258 | O102: 1258 | Q102: 2515
I103: Summer 2014 | K103: =K102*$S$50 -> 655.418 | M103: =M102*$S$50 -> 1310.836 | O103: =O102*$S$50 -> 1310.836 | Q103: =Q102*$S$50 -> 2620.63
I104: Summer 2015 | K104: =K103*$S$50 -> 682.945556 | M104: =M103*$S$50 -> 1365.891112 | O104: =O103*$S$50 -> 1365.891112 | Q104: =Q103*$S$50 -> 2730.69646
I105: Summer 2016 | K105: 711.6292694 | M105: 1423.258539 | O105: 1423.258539 | Q105: 2845.385711
I106: Summer 2017 | K106: 741.5176987 | M106: 1483.035397 | O106: 1483.035397 | Q106: 2964.891911
I107: Summer 2018 | K107: 772.661442 | M107: 1545.322884 | O107: 1545.322884 | Q107: 3089.417371
I108: Summer 2019 | K108: 805.1132226 | M108: 1610.226445 | O108: 1610.226445 | Q108: 3219.172901

Sheet BA Upload
A1: Sponsor: | B1: =Summary!D3 -> 0
A2: Title: | B2: =Summary!D4 -> 0
A3: PI Name: | B3: =Summary!D5 -> 0
A4: Period of Performance: | B4: =Summary!D6 -> 00:00:00
A5: Account Number:
A7: Budget Categories | B7: Budget Code | C7: Amount
A8: Salary/Hourly | B8: 0108 | C8: =ROUND(Summary!R37,0) -> 0
A9: Payroll Benefits | B9: 0130 | C9: =ROUND(Summary!R39,0) -> 0
A10: Equipment | B10: 0710 | C10: =ROUND(Summary!R64,0) -> 0
A11: Travel Domestic | B11: 0215 | C11: =ROUND(Summary!R69+Summary!R74+Summary!R75,0) -> 0
A12: Travel Foreign | B12: 0216 | C12: =ROUND(Summary!R70,0) -> 0
A13: Student Tuition | B13: 0610 | C13: =ROUND(SUM(Summary!R87:R88),0) -> 0
A14: Supplies | B14: 0410 | C14: =ROUND(Summary!R79,0) -> 0
A15: Subcontracts
A16: Subject to IDC | B16: 0396 | C16: =ROUND(Summary!R83+Summary!R85,0) -> 0
A17: Not Subejct to IDC | B17: 0376 | C17: =ROUND(Summary!R84+Summary!R86,0) -> 0
A18: Other Direct Costs
A19: Telecom Charges | B19: 0340 | C19: 0
A20: Computer Usage | B20: 0353 | C20: =ROUND(Summary!R81,0) -> 0
A21: Printing/Copying | B21: 0373 | C21: =ROUND(Summary!R80,0) -> 0
A22: Services/Honoraria | B22: 0302 | C22: =ROUND(Summary!R73,0) -> 0
A23: Postage | B23: 0379 | C23: 0
A24: Other | B24: 0630 | C24: =ROUND(Summary!R82+Summary!R89+Summary!R90+Summary!R76,0) -> 0
A25: Total Direct Costs | C25: =SUM(C8:C24) -> 0
A26: Indirect Costs | B26: 0642 | C26: =ROUND(Summary!R98,0) -> 0
A27: Total Costs | C27: =SUM(C25:C26) -> 0
